[Event "Budapest One Week IM-B 03-2025"]
[Site "Budapest"]
[Date "2025.03.19"]
[Round "5.1"]
[White "Luebke, Florentin"]
[Black "Pribelszky, Bence"]
[Result "0-1"]
[Annotator "TA"]
[ECO "A11"]
[WhiteElo "2233"]
[BlackElo "2400"]
[PlyCount "80"]
[EventDate "2025.03.17"]
[EventType "tourn"]
[EventCountry "HUN"]
[SourceTitle "playchess.com"]
[Source "ChessBase"]
[SourceQuality "1"]
[TimeControl "5400+30"]

{[%evp 9,80,21,41,-12,-21,-20,-31,-28,-29,-42,-39,-43,-26,-17,-19,-27,-29,-47,-37,-33,-29,-25,-23,-43,-39,-67,-29,-28,-39,-41,-33,-81,-24,-43,-33,-35,-10,-12,0,0,-2,-23,46,0,18,-8,0,-47,-29,-34,-42,-38,-39,-48,0,-134,-122,-116,-113,-144,-141,-141,-141,-141,-117,-353,-325,-460,-454,-775,-781,-29993,-29994]} 1. e4 {[%emt 0:00:04]} a6 {[%emt 0:00:22]} 2. c4 {[%emt 0:01:38]} Nc6 {[%emt 0:00:57]} 3. d4 {[%emt 0:01:22]} e5 {[%emt 0:00:06]} 4. d5 $146 {[%emt 0:01:39]} (4. Nf3 exd4 5. Nxd4 Bb4+ 6. Bd2 Bxd2+ 7. Qxd2 Qe7 8. Nc3 Nf6 9. f3 O-O 10. Be2 {1-0 Pottinger,C (1809)-Adol,D (1783) Winnipeg TNT February op 2007 (3)}) 4... Nd4 {[%emt 0:00:06]} 5. Nf3 {[%emt 0:03:06]} c5 {[%emt 0:07:30]} 6. dxc6 {[%emt 0:07:51] B00: Queen's Fianchetto Defence, Nimzowitsch Defence.} (6. Nxe5 $14 Qe7 7. Ng4) 6... dxc6 $11 {[%emt 0:00:15]} 7. h3 {[%emt 0:08:10]} Nf6 {[%emt 0:02:50]} 8. Bd3 {[%emt 0:03:26] Black is slightly better.} Bb4+ {[%emt 0:03:14]} 9. Nbd2 {[%emt 0:02:00]} Nh5 {[%emt 0:18:43]} 10. g3 {[%emt 0:11:56] Repels Nf4} Nf6 {[%emt 0:08:51]} 11. a3 {[%emt 0:04:49]} Nxf3+ {[%emt 0:00:47]} 12. Qxf3 {[%emt 0:00:14]} Be7 {[%emt 0:00:05]} 13. b3 {[%emt 0:16:43]} Qd4 {[%emt 0:08:12]} 14. Rb1 {[%emt 0:02:17]} Be6 {[%emt 0:00:04]} 15. Bb2 {[%emt 0:12:55]} Qd7 {[%emt 0:00:06] [#]} 16. Bf1 {[%emt 0:00:28]} Qc7 {[%emt 0:08:43]} 17. Bg2 {[%emt 0:04:41]} h5 {[%emt 0:00:06]} 18. Qc3 {[%emt 0:01:24]} Nd7 {[%emt 0:02:11]} 19. O-O {[%emt 0:04:46]} h4 {[%emt 0:00:49]} 20. f4 {[%emt 0:00:16]} (20. g4 $15) 20... Bc5+ {[%emt 0:10:24]} (20... f6 $17) 21. Kh1 {[%emt 0:00:04]} Bd4 {[%emt 0:00:13]} 22. Qf3 {[%emt 0:04:29]} Bxb2 {[%emt 0:00:07]} 23. Rxb2 {[%emt 0:00:15] Threatens to win with f5.} f6 {[%emt 0:00:12]} 24. f5 {[%emt 0:00:58]} Bf7 {[%emt 0:00:03]} 25. g4 {[%emt 0:00:41]} Ke7 {[%emt 0:00:48]} ({Black should try} 25... O-O-O $11) 26. Qf2 {[%emt 0:01:29]} (26. Rc1 $14 {deserves consideration.}) 26... Qa5 {[%emt 0:01:38]} 27. Nb1 {[%emt 0:00:52]} Qc5 $36 {[%emt 0:00:42][%mdl 2048] Black has the initiative.} 28. Qe2 {[%emt 0:01:19]} (28. Qe1 $11) 28... a5 $15 {[%emt 0:01:21]} 29. Rc1 {[%emt 0:00:27]} Rhd8 {[%emt 0:02:17]} 30. Qe1 {[%emt 0:00:30][%cal Ob3b4]} Qd4 {[%emt 0:01:01]} 31. Rd2 {[%emt 0:00:23]} Qb6 {[%emt 0:00:07]} (31... Qa7 $1 $15) 32. b4 {[%emt 0:01:51]} (32. Qxh4 $11 {remains equal.} Qxb3 33. Qf2) 32... axb4 $17 {[%emt 0:00:47]} 33. axb4 {[%emt 0:00:20]} Ra4 {[%emt 0:00:35]} 34. Rb2 {[%emt 0:01:34][%cal Oc4c5]} Nc5 {[%emt 0:07:50] Black is more active.} 35. Nc3 {[%emt 0:00:59] [#]} Ra6 {[%emt 0:00:04]} (35... Rxb4 $2 36. Rxb4 Qc7 (36... Qxb4 $2 37. Nd5+ cxd5 38. Qxb4 $18) 37. Rcb1 $18 (37. Qxh4 Nd3 $18)) 36. Bf1 {[%emt 0:02:00][%cal Oe1e3]} Nd3 {[%emt 0:00:56]} 37. Bxd3 {[%emt 0:00:31] Loses the game.} (37. c5 $17 {is the only way for White.} Nxe1 38. cxb6) 37... Rxd3 $19 {[%emt 0:00:03]} 38. c5 {[%emt 0:00:02]} (38. b5 $142 Bxc4 (38... Rxh3+ 39. Kg2 $11) 39. g5) 38... Qd8 {[%emt 0:00:41] aiming for ...Ra3.} (38... Rxh3+ $2 {is the wrong capture.} 39. Kg2 Qd8 40. Kxh3 $18) 39. Rd1 {[%emt 0:00:57]} (39. Ne2 $142 Rxh3+ 40. Kg2) 39... Ra3 {[%emt 0:02:01]} ({Weaker is} 39... Rxh3+ 40. Kg2 Rd3 41. Rbd2 (41. Nd5+ Rxd5 42. exd5 Bxd5+ 43. Kh2 Qa8 $17) 41... Rg3+ 42. Kh2 $15 (42. Qxg3 Qxd2+ 43. Rxd2 hxg3 $11)) 40. Nb1 {[%emt 0:00:33]} Rxd1 {[%emt 0:00:07] Weighted Error Value: White=0.55/Black=0.11 (very precise)   Loses game:     	White=1     	---        Mistake:       	White=6     	Black=3      Inaccurate:     	White=3     	Black=1      OK:         	White=11    	Black=12     Best:        	White=2     	Black=6} 0-1

[Event "Budapest One Week IM-B 03-2025"]
[Site "Budapest"]
[Date "2025.03.19"]
[Round "5.2"]
[White "Kustar, Sandor"]
[Black "Mrithyunjay Mahadevan"]
[Result "1/2-1/2"]
[Annotator "NA RC"]
[ECO "D37"]
[WhiteElo "2231"]
[BlackElo "2295"]
[PlyCount "69"]
[EventDate "2025.03.17"]
[EventType "tourn"]
[EventCountry "HUN"]
[SourceTitle "playchess.com"]
[Source "ChessBase"]
[SourceQuality "1"]
[TimeControl "5400+30"]

1. d4 {[%emt 0:00:12]} Nf6 {[%emt 0:02:03]} 2. Nf3 {[%emt 0:00:19]} d5 {[%emt 0:00:28]} 3. c4 {[%emt 0:00:11]} e6 {[%emt 0:00:05]} 4. Nc3 {[%emt 0:00:51]} dxc4 {[%emt 0:00:07]} 5. e3 {[%emt 0:00:33]} a6 {[%emt 0:02:01]} 6. a4 {[%emt 0:00:50]} c5 7. Bxc4 {[%emt 0:00:12]} Nc6 {[%emt 0:00:37]} 8. O-O cxd4 9. exd4 {[%emt 0:01:04]} Be7 {[%emt 0:02:44]} 10. d5 {[%emt 0:04:30]} Na5 {[%emt 0:04:30]} 11. Ba2 {[%emt 0:00:44]} exd5 {[%emt 0:00:20]} 12. Nxd5 {[%emt 0:01:31]} Nxd5 {[%emt 0:00:32]} 13. Bxd5 {[%emt 0:01:00]} O-O {[%emt 0:00:43]} 14. Bf4 {[%emt 0:00:30]} Be6 {[%emt 0:02:31]} 15. Bxe6 {[%emt 0:01:50]} fxe6 {[%emt 0:00:05]} 16. Bg3 {[%emt 0:04:33]} Qb6 {[%emt 0:15:06]} 17. Qd7 {[%emt 0:17:50]} Bf6 {[%emt 0:00:39]} 18. Rfe1 {[%emt 0:12:33]} Rfe8 {[%emt 0:01:51]} 19. Be5 {[%emt 0:17:02]} Rad8 {[%emt 0:02:48]} 20. Qc7 {[%emt 0:00:18]} Qxc7 {[%emt 0:00:17]} 21. Bxc7 {[%emt 0:00:05]} Rd5 {[%emt 0:00:07]} 22. Rad1 {[%emt 0:00:24]} Rxd1 {[%emt 0:00:10]} 23. Rxd1 {[%emt 0:00:04]} Nc6 {[%emt 0:03:43]} 24. b3 {[%emt 0:01:53]} Rc8 {[%emt 0:01:14]} 25. Bb6 {[%emt 0:05:28]} Nb4 {[%emt 0:01:03]} 26. h4 {[%emt 0:05:03]} Rc3 {[%emt 0:01:32]} 27. Bd4 {[%emt 0:00:14]} Bxd4 {[%emt 0:01:22]} 28. Rxd4 {[%emt 0:00:03]} Nc6 {[%emt 0:00:34]} 29. Rd7 {[%emt 0:00:28]} Rxb3 {[%emt 0:00:15]} 30. Ng5 {[%emt 0:00:05]} Rb1+ {[%emt 0:01:51]} 31. Kh2 {[%emt 0:00:02]} Rb4 {[%emt 0:00:09]} 32. Kh3 {[%emt 0:05:48]} Rxa4 {[%emt 0:04:08]} 33. Rxb7 {[%emt 0:00:52]} Rf4 {[%emt 0:04:29]} 34. Rb6 {[%emt 0:13:55]} Nd8 {[%emt 0:00:19]} 35. Rxa6 {[%emt 0:00:37]} 1/2-1/2

[Event "Budapest One Week IM-B 03-2025"]
[Site "Budapest"]
[Date "2025.03.19"]
[Round "5.3"]
[White "Varga, Zoltan"]
[Black "Ongut, Tamas Gunes"]
[Result "1/2-1/2"]
[Annotator "TA"]
[ECO "E10"]
[WhiteElo "2305"]
[BlackElo "2290"]
[PlyCount "41"]
[EventDate "2025.03.17"]
[EventType "tourn"]
[EventCountry "HUN"]
[SourceTitle "playchess.com"]
[Source "ChessBase"]
[SourceQuality "1"]
[TimeControl "5400+30"]

{[%evp 15,41,-20,-21,-22,0,0,-7,-50,-26,-23,0,0,-8,-7,-6,-7,-2,-12,-9,-18,-34,-28,-27,-23,0,-17,0,-8]} 1. d4 {[%emt 0:15:05]} Nf6 {[%emt 0:00:24]} 2. c4 {[%emt 0:00:08]} e6 {[%emt 0:02:29]} 3. Nf3 {[%emt 0:00:05]} d5 {[%emt 0:00:08]} 4. g3 {[%emt 0:00:22]} dxc4 {[%emt 0:00:28]} 5. Qa4+ {[%emt 0:00:40]} Nbd7 {[%emt 0:03:43]} 6. Bg2 {[%emt 0:06:40]} a6 {[%emt 0:00:53]} 7. Qxc4 {[%emt 0:00:10]} b5 {[%emt 0:01:13]} 8. Qd3 {[%emt 0:08:14]} Bb7 {[%emt 0:00:47]} 9. O-O {[%emt 0:00:06] E03: Open Catalan: 5 Qa4+ Nbd7 6 Qxc4.} Be7 {[%emt 0:06:55]} 10. a4 {[%emt 0:03:24]} O-O {[%emt 0:02:21]} 11. Ne1 {[%emt 0:03:21]} Bxg2 {[%emt 0:00:42]} 12. Nxg2 {[%emt 0:00:02]} c5 $146 {[%emt 0:11:41]} (12... b4 13. Nd2 c5 14. Nb3 Qc8 15. dxc5 Nxc5 16. Nxc5 Rd8 17. Qb3 Qxc5 18. Be3 Qf5 {½-½ Akhras,K (2244)-Dogdu,M (2016) Istanbul op 2014 (4)}) 13. axb5 {[%emt 0:04:42]} axb5 {[%emt 0:00:10]} 14. Rxa8 {[%emt 0:00:07]} Qxa8 {[%emt 0:00:06]} 15. dxc5 {[%emt 0:00:10]} b4 {[%emt 0:05:52]} 16. Be3 {[%emt 0:03:54]} Nxc5 {[%emt 0:03:07]} 17. Bxc5 {[%emt 0:03:47]} Bxc5 {[%emt 0:00:08]} 18. Nd2 {[%emt 0:00:02]} Rd8 {[%emt 0:02:21]} 19. Qc2 {[%emt 0:00:36]} Qa7 {[%emt 0:06:13]} 20. e3 {[%emt 0:04:45]} h6 {[%emt 0:04:34]} 21. Nb3 {[%emt 0:04:09] Weighted Error Value: White=0.09 (flawless) /Black=0.10 (very precise)   Inaccurate:     	White=1     	---        OK:         	White=3     	Black=4      Best:        	White=2     	---} 1/2-1/2

[Event "Budapest One Week IM-B 03-2025"]
[Site "Budapest"]
[Date "2025.03.19"]
[Round "5.4"]
[White "Jing, Andrew"]
[Black "Shah, Vishwa"]
[Result "1-0"]
[Annotator "TA"]
[ECO "A58"]
[WhiteElo "2198"]
[BlackElo "2172"]
[PlyCount "105"]
[EventDate "2025.03.17"]
[EventType "tourn"]
[EventCountry "HUN"]
[SourceTitle "playchess.com"]
[Source "ChessBase"]
[SourceQuality "1"]
[TimeControl "5400+30"]

{[%evp 16,105,39,42,56,34,47,42,31,27,48,54,61,42,44,47,50,35,83,72,99,84,88,88,74,61,63,75,130,130,126,-9,106,103,121,121,121,118,150,148,142,25,132,133,153,140,166,137,164,168,168,163,168,160,192,176,173,173,173,173,177,179,189,194,195,194,181,179,184,197,337,348,452,440,367,339,575,534,737,746,694,675,680,661,775,746,1392,1383,29977,29978,6028,5557]} 1. d4 {[%emt 0:10:14]} Nf6 {[%emt 0:00:11]} 2. c4 {[%emt 0:00:08]} c5 {[%emt 0:00:15]} 3. d5 {[%emt 0:00:10]} b5 {[%emt 0:00:10]} 4. cxb5 {[%emt 0:00:06]} a6 {[%emt 0:00:03]} 5. bxa6 {[%emt 0:00:05]} g6 {[%emt 0:00:17]} 6. Nc3 {[%emt 0:00:06]} Bg7 {[%emt 0:00:03]} 7. g3 {[%emt 0:00:04]} O-O {[%emt 0:00:20]} 8. Bg2 {[%emt 0:00:04]} d6 {[%emt 0:00:03]} 9. Nf3 {[%emt 0:00:04]} Nbd7 {[%emt 0:00:07][%cal Bb8d7,Bd7b6,Bb6c4][%mdl 32] A58: Benko/Volga Gambit: Lines with 5 bxa6.} 10. O-O {[%emt 0:00:05]} Nb6 {[%emt 0:00:05]} 11. a4 {[%emt 0:00:07][%cal Ba2a4,Ba4a5][%mdl 32]} Bxa6 {[%emt 0:01:57] White is slightly better.} 12. Nd2 {[%emt 0:00:16]} Qd7 $146 {[%emt 0:07:16] Black sacrificed a pawn} (12... Nbd7 13. Ra3 Qa5 14. Na2 Rfb8 15. b3 Ra7 16. Bb2 Ne4 17. Bxg7 Qxd2 18. Bxe4 Qxd1 19. Rxd1 Kxg7 {½-½ Kruse,H (2388)-Podgursky,A (2458) FICGS class M 000013 email 2016 (1)}) 13. a5 {[%emt 0:02:39]} Nc4 {[%emt 0:01:07]} 14. Nxc4 {[%emt 0:04:22]} Bxc4 {[%emt 0:00:02]} 15. Ra3 {[%emt 0:05:30]} Rfb8 {[%emt 0:07:10]} 16. b3 $1 {[%emt 0:00:32]} Bb5 {[%emt 0:01:16]} (16... Ba6 $14 {deserves consideration.}) 17. Bd2 {[%emt 0:01:59]} Ne8 {[%emt 0:02:37]} 18. Nxb5 {[%emt 0:30:48]} Qxb5 {[%emt 0:01:05]} 19. Qc2 {[%emt 0:00:28]} Nc7 {[%emt 0:00:49][%cal Oc7a6]} 20. Bf3 {[%emt 0:11:23]} Na6 {[%emt 0:03:33]} 21. Qa2 $1 {[%emt 0:01:32]} Nb4 {[%emt 0:08:34]} (21... Rb7 $142) 22. Bxb4 $16 {[%emt 0:00:17]} Qxb4 {[%emt 0:00:58]} 23. Rc1 {[%emt 0:02:56] White is weak on the dark squares} (23. e3 $16) 23... Qd4 {[%emt 0:11:46]} (23... Ra6 $11) 24. Rc2 {[%emt 0:01:05]} Ra7 {[%emt 0:04:27]} 25. Kg2 {[%emt 0:00:57]} Qb4 {[%emt 0:02:17]} 26. e3 {[%emt 0:01:54]} Bc3 {[%emt 0:02:51][%cal Ra7a5]} 27. a6 {[%emt 0:00:44]} Bf6 {[%emt 0:00:04]} 28. Be2 {[%emt 0:02:47]} (28. Rc1 $16) 28... Kg7 {[%emt 0:04:56]} (28... Qe4+ $1 $11 29. Bf3 Qf5) 29. Bc4 {[%emt 0:00:38]} Qb6 {[%emt 0:01:06]} 30. Ra5 {[%emt 0:01:29]} Qb4 {[%emt 0:00:40]} 31. Qa4 {[%emt 0:00:26]} Bc3 {[%emt 0:03:10]} 32. Qxb4 {[%emt 0:00:06]} Bxb4 {[%emt 0:00:10]} 33. Rb5 {[%emt 0:00:14]} Rxb5 {[%emt 0:01:27]} 34. Bxb5 $18 {[%emt 0:00:04][%mdl 4096] Endgame KRB-KRB. White is a pawn up.} Ba5 {[%emt 0:00:02]} 35. Ra2 {[%emt 0:00:07]} Bb6 {[%emt 0:00:15]} 36. Bc6 {[%emt 0:00:36]} Rc7 {[%emt 0:00:10]} 37. Kf3 {[%emt 0:01:20]} Kf6 {[%emt 0:02:16]} 38. Ke4 {[%emt 0:00:23]} e5 {[%emt 0:01:19]} 39. Kd3 {[%emt 0:00:32]} Ke7 {[%emt 0:00:01]} 40. e4 {[%emt 0:00:06]} Kd8 {[%emt 0:00:25]} 41. f4 {[%emt 0:00:21]} f6 {[%emt 0:03:28][%cal Bf7f6,Bf6e5][%mdl 32]} 42. Kc4 {[%emt 0:00:21] and fxe5 would now be decisive} Ba7 {[%emt 0:04:51] [#]} (42... Rf7 $142 43. Rf2 (43. Kb5 Ba7 $18) 43... Re7 44. fxe5 Rxe5) 43. fxe5 $1 {[%emt 0:00:15]} fxe5 {[%emt 0:00:23] [#]} 44. Rf2 {[%emt 0:00:06] Inhibits Rf7.} Ke7 {[%emt 0:00:03] Against Rf8} 45. Bb7 {[%emt 0:01:41]} Rd7 $2 {[%emt 0:00:42]} (45... h5 {was called for.} 46. Rf3 Bb8) 46. Bc8 {[%emt 0:00:27]} Rc7 {[%emt 0:01:58]} 47. Be6 {[%emt 0:00:05]} Ke8 {[%emt 0:00:37]} 48. h4 {[%emt 0:00:38]} Rg7 {[%emt 0:03:09]} 49. g4 {[%emt 0:00:23]} h6 {[%emt 0:01:37]} 50. Rf6 {[%emt 0:00:55]} Bb6 {[%emt 0:01:54]} 51. Bc8 {[%emt 0:00:39]} Kd8 {[%emt 0:03:41]} 52. Rxd6+ {[%emt 0:00:09]} Kxc8 {[%emt 0:00:01]} 53. Rxb6 {[%emt 0:00:06] Weighted Error Value: White=0.11 (very precise) /Black=0.50  Mistake:       	White=2     	Black=6      Inaccurate:     	---       	Black=1      OK:         	White=12    	Black=14     Best:        	White=3     	---        Strong:       	White=3     	---} 1-0

[Event "Budapest One Week IM-B 03-2025"]
[Site "Budapest"]
[Date "2025.03.19"]
[Round "5.5"]
[White "Turcsanyi, Vince Gergo"]
[Black "Venkatesh, Narayan"]
[Result "1-0"]
[Annotator "TA"]
[ECO "A06"]
[WhiteElo "2285"]
[BlackElo "2203"]
[PlyCount "101"]
[EventDate "2025.03.17"]
[EventType "tourn"]
[EventCountry "HUN"]
[SourceTitle "playchess.com"]
[Source "ChessBase"]
[SourceQuality "1"]
[TimeControl "5400+30"]

{[%evp 16,101,16,14,35,14,12,-5,-3,0,0,-12,-4,-17,-6,-6,-4,-12,0,-12,-20,-6,-10,-19,0,0,0,-7,0,0,0,0,0,0,0,0,5,0,0,0,0,0,0,-4,0,0,0,0,0,0,0,0,26,0,0,0,52,0,0,0,154,162,154,150,412,408,412,410,410,396,874,803,852,893,882,779,923,848,1164,821,5181,2650,29962,29945,29973,29976,29979,29980]} 1. Nf3 {[%emt 0:00:07]} d5 {[%emt 0:03:26]} 2. e3 {[%emt 0:00:10]} c5 {[%emt 0:00:08]} 3. b3 {[%emt 0:00:06]} Nf6 {[%emt 0:00:09]} 4. Bb2 {[%emt 0:00:13]} g6 {[%emt 0:00:10]} 5. c4 {[%emt 0:00:41]} dxc4 6. Bxc4 {[%emt 0:00:38]} Bg7 {[%emt 0:00:19]} 7. d4 {[%emt 0:01:52]} cxd4 {[%emt 0:01:38]} 8. Nxd4 {[%emt 0:01:12]} O-O {[%emt 0:00:49]} 9. O-O {[%emt 0:00:27]} Bd7 {[%emt 0:00:16] The main line 9...Bd7 scores better than 9...a6. E60: King's Indian: Unusual lines and Fianchetto Variation without Nc3.} 10. Be2 {[%emt 0:07:47]} Nc6 {[%emt 0:01:01]} 11. Bf3 {[%emt 0:01:23]} Rc8 {[%emt 0:01:30] The position is equal.} 12. Nd2 {[%emt 0:05:46][%cal Bb1d2,Bd2f3,Bf3e5][%mdl 32]} Nxd4 {[%emt 0:12:32]} 13. Bxd4 {[%emt 0:00:58]} Bc6 {[%emt 0:00:48]} 14. Qe2 $146 {[%emt 0:18:01]} (14. Nc4 b6 15. Rc1 Bxf3 16. Qxf3 Qd5 17. Rfd1 Qxf3 18. gxf3 Rc7 19. a4 Rfc8 20. Rc2 {0-1 Melkumyan,H (2645)-Bluebaum,M (2647) Titled Tuesday intern op 04th Oct Late blitz 2022 (8)}) 14... a6 {[%emt 0:15:39]} 15. Rac1 {[%emt 0:04:43]} Bxf3 {[%emt 0:06:51]} 16. Nxf3 {[%emt 0:00:20]} Qa5 {[%emt 0:03:00]} 17. Ne5 {[%emt 0:06:10]} Rfd8 {[%emt 0:08:17]} 18. Nc4 {[%emt 0:06:52]} Qf5 {[%emt 0:03:05]} 19. Qb2 {[%emt 0:04:31]} b5 {[%emt 0:06:24]} 20. Na5 {[%emt 0:06:08]} Qd5 {[%emt 0:04:09] Prevents Nc6} 21. h3 {[%emt 0:03:05]} Ne8 {[%emt 0:05:36][%cal Bf6e8,Be8g7,Bg7f5][%mdl 32]} 22. Bxg7 {[%emt 0:05:16]} Nxg7 {[%emt 0:00:11]} 23. Rxc8 {[%emt 0:03:06]} Rxc8 {[%emt 0:00:02]} 24. Rc1 {[%emt 0:00:15]} Qe6 {[%emt 0:06:47]} 25. b4 {[%emt 0:05:30] The position is symmetric and equal} Nf5 {[%emt 0:01:52]} 26. Nb3 {[%emt 0:11:38]} Nd6 {[%emt 0:04:53]} 27. Rxc8+ {[%emt 0:06:07]} Qxc8 $11 {[%emt 0:03:27][%mdl 4096] Endgame KQN-KQN} 28. Nc5 {[%emt 0:00:38]} a5 {[%emt 0:01:05]} 29. e4 {[%emt 0:00:36]} Qd8 {[%emt 0:07:03]} 30. Qd2 {[%emt 0:00:37] [#]} axb4 {[%emt 0:00:38]} 31. Qxb4 {[%emt 0:00:15]} Qa8 {[%emt 0:01:04]} 32. e5 {[%emt 0:00:40]} Nf5 {[%emt 0:00:26]} 33. Qxb5 {[%emt 0:00:34]} Qa3 {[%emt 0:01:50]} 34. g3 {[%emt 0:00:34]} Qc1+ {[%emt 0:01:05]} 35. Kg2 {[%emt 0:00:07]} Qc2 {[%emt 0:00:50]} (35... Ne3+ $11 36. fxe3 Qc2+ 37. Kg1 Qc1+ 38. Kf2 Qc2+ 39. Kg1) 36. Qe8+ {[%emt 0:00:29]} (36. a4 $14) 36... Kg7 {[%emt 0:00:02][%cal Oc2e2] Hoping for ...Qe2!.} 37. Nd7 {[%emt 0:00:12][%csl Gd7][%cal Re8f8]} Qc6+ $2 {[%emt 0:00:53]} ({Better is} 37... Kh6 $11) 38. Kh2 $16 {[%emt 0:00:06][%csl Gd7][%cal Re8f8]} Kh6 {[%emt 0:00:32]} 39. Nf6 $1 $36 {[%emt 0:01:36][%mdl 2048] Threatening mate with Qf8+. White is in control.} Qf3 $2 {A mistake that costs the game.} (39... Qxe8 $16 {was worth a try.} 40. Nxe8 Nd4) 40. Qf8+ $18 {[%emt 0:00:21]} Kg5 {[%emt 0:01:01]} 41. h4+ {[%emt 0:00:10]} (41. Nxh7+ Kh5 42. Kg1 (42. Qxf7 $2 Qxf2+ 43. Kh1 Nxg3#) (42. g4+ Kh4 $15) 42... Nxg3 43. fxg3 Qxg3+ 44. Kf1 Qf4+ 45. Ke2 Qxe5+ 46. Kd3 Qd5+ 47. Kc3 Qc5+ 48. Kb3 Qb5+ 49. Kc3 Qa5+ 50. Kb3 Qb5+ 51. Ka3 Qd3+ 52. Kb4 Qb1+ 53. Ka3 Qd3+ 54. Kb4 Qb1+ 55. Ka3 Qc1+ 56. Kb3 Qb1+ 57. Kc3 Qe1+ 58. Kd3 Qd1+ 59. Kc3 Qc1+ 60. Kb3 Qb1+ 61. Ka3 $11) 41... Nxh4 {[%emt 0:00:07]} 42. gxh4+ {[%emt 0:00:23]} Kf4 $2 {[%emt 0:00:51]} (42... Kf5 43. Qc8+ (43. Nxh7 Qxf2+ 44. Kh3 Qe3+ 45. Kg2 Qe4+ 46. Kg1 Qb1+ 47. Kf2 Qxa2+ 48. Ke3 Qb3+ 49. Ke2 Qc4+ 50. Kd2 Qd5+ 51. Kc1 Qc4+ 52. Kd2 Qd4+ 53. Kc2 Qe4+ 54. Kb3 Qe3+ 55. Ka4 Qa7+ 56. Kb4 Qb6+ 57. Ka4 Qc6+ 58. Ka5 Qc7+ 59. Ka6 Qc6+ 60. Ka7 Ke6 $11) 43... Kxe5) 43. Qh6+ {[%emt 0:00:34]} (43. Nxh7 $2 {leads to mate.} Qxf2+ (43... Kxe5 $2 {too greedy.} 44. Qxe7+ Kd4 45. Qb4+ Kd3 46. Qb3+ Ke2 47. Qxf3+ Kxf3 48. a4 $18) 44. Kh1 Kg3 45. Qxe7 Qh2#) 43... Kxe5 {[%emt 0:00:39]} 44. Qe3+ {[%emt 0:00:51]} ({Weaker is} 44. Nxh7 Qxf2+ 45. Kh3 Qf3+ 46. Kh2 Qf2+ 47. Kh1 Qf1+ 48. Kh2 Qf2+ $11) 44... Qxe3 {[%emt 0:00:04]} 45. Ng4+ {[%emt 0:00:04]} Kd4 {[%emt 0:00:34]} 46. Nxe3 {[%emt 0:00:07]} Kc5 {[%emt 0:00:31]} 47. Kg3 {[%emt 0:00:43] Strongly threatening Ng4.} e6 {[%emt 0:00:04]} 48. Kf4 {[%emt 0:00:11]} f6 {[%emt 0:00:04]} 49. Ng4 {[%emt 0:00:17] White mates.} e5+ {[%emt 0:00:17] [#]} 50. Nxe5 $1 {[%emt 0:00:09]} fxe5+ {[%emt 0:00:05]} (50... Kd6 51. Ng4) 51. Kxe5 {[%emt 0:00:04] Weighted Error Value: White=0.12 (very precise) /Black=0.78  Loses game:     	---       	Black=1      Mistake:       	White=1     	Black=3      Inaccurate:     	White=1     	Black=1      OK:         	White=11    	Black=9      Best:        	White=4     	Black=3      Strong:       	White=1     	---} 1-0